bitfinex-derivatives/quotes_SOLF0:USTF0_20260108
["timestamp","ask_amount","ask_price","bid_price","bid_amount"]
[1767874121063,6.7107,134.3,134.23,6.714]
[1767874121668,0.30799057,134.31,134.23,6.714]
[1767874122175,0.30799057,134.31,134.21,2.95823585]
[1767874122377,6.7107,134.3,134.21,2.95823585]
[1767874122875,7.01869057,134.3,134.21,2.95823585]
[1767874123075,0.30799057,134.29,134.21,6.7146]
[1767874124576,6.7118,134.28,134.21,6.7146]
[1767874125877,7.01979057,134.28,134.21,6.7146]
[1767874127475,6.7121,134.27,134.2,6.7156]
[1767874127674,0.30799057,134.28,134.19,90.95823585]
[1767874127876,7.01979057,134.28,134.21,6.7151]
[1767874128875,6.7118,134.28,134.21,6.7151]
[1767874129178,0.30799057,134.28,134.22,6.7146]
[1767874129472,0.30799057,134.31,134.23,2.95823585]
[1767874129981,0.30799057,134.31,134.22,94.7741]
[1767874131580,6.7111,134.29,134.22,94.7741]
[1767874131978,0.30799057,134.29,134.2,6.7151]
[1767874132176,0.30799057,134.27,134.18,88.06]
[1767874132377,0.30799057,134.27,134.19,2.95823585]
[1767874132767,0.30799057,134.27,134.2,6.7155]
[1767874132972,0.30799057,134.29,134.19,2.95823585]
[1767874133576,0.30799057,134.28,134.19,9.67393585]
[1767874134677,7.01979057,134.28,134.2,6.7155]
[1767874135079,0.30799057,134.27,134.2,6.7155]
[1767874135484,7.02059057,134.27,134.18,97.73443585]
[1767874136177,0.30799057,134.26,134.18,94.7762]
[1767874137882,7.02089057,134.26,134.18,6.7162]
[1767874138683,0.30799057,134.28,134.18,2.95823585]
[1767874139383,0.30799057,134.28,134.2,2.95823585]
[1767874139875,6.7123,134.27,134.18,9.67453585]
[1767874140077,0.30799057,134.26,134.18,9.67453585]
[1767874140274,0.30799057,134.26,134.18,6.7163]
[1767874140475,7.02119057,134.25,134.17,9.67533585]
[1767874140981,6.7125,134.27,134.19,6.7161]
[1767874141184,0.30799057,134.26,134.16,16.64839979]
[1767874141379,0.30799057,134.26,134.16,19.60663564]
[1767874141580,7.02079057,134.26,134.19,6.716]
[1767874141992,0.30799057,134.26,134.18,2.95823585]
[1767874142685,0.30799057,134.26,134.2,6.7155]
[1767874143986,0.30799057,134.26,134.16,16.64839979]
[1767874144480,0.30799057,134.26,134.17,2.95823585]
[1767874145193,0.30799057,134.26,134.16,19.60663564]
[1767874145493,0.30799057,134.26,134.16,26.52486645]
[1767874146081,0.30799057,134.26,134.18,6.7164]
[1767874146278,0.30799057,134.26,134.16,23.5666306]
[1767874146485,0.30799057,134.26,134.16,26.52486645]
[1767874146689,7.02079057,134.26,134.16,33.24206645]
[1767874147193,7.02079057,134.26,134.17,6.717]
[1767874148287,7.03882335,134.25,134.17,6.91823081]
[1767874148490,0.32562335,134.24,134.16,23.5666306]
[1767874149298,0.32562335,134.22,134.16,16.64839979]
[1767874150188,0.32562335,134.21,134.16,16.64839979]
[1767874155099,0.32562335,134.25,134.16,16.64839979]
[1767874155295,104.74762335,134.26,134.17,2.95823585]
[1767874155597,0.32562335,134.24,134.16,23.5666306]
[1767874157201,0.32562335,134.24,134.17,6.7171]
[1767874157593,0.32562335,134.26,134.19,6.7158]
[1767874159000,88.08,134.29,134.17,9.87646666]
[1767874159001,0.32562335,134.24,134.17,13.63493081]
[1767874159195,0.32562335,134.24,134.17,6.7167]
[1767874159392,0.32562335,134.24,134.17,13.63493081]
[1767874159698,0.32562335,134.24,134.18,6.7166]
[1767874160493,0.32562335,134.31,134.19,2.95823585]
[1767874160703,0.32562335,134.29,134.2,6.91823081]
[1767874161003,5.43874534,134.28,134.2,6.91823081]
[1767874161696,0.32562335,134.29,134.21,9.87646666]
[1767874161891,0.32562335,134.32,134.23,9.87646666]
[1767874162101,6.7096,134.33,134.25,9.87646666]
[1767874162503,0.32562335,134.34,134.28,1.89478621]
[1767874162707,6.7086,134.35,134.28,1.89478621]
[1767874163088,104.3064,134.41,134.28,1.89478621]
[1767874163296,0.32562335,134.4,134.33,1.89478621]
[1767874163512,0.32562335,134.4,134.35,1.89478621]
[1767874163906,6.7053,134.41,134.35,1.89478621]
[1767874164196,0.32562335,134.41,134.33,1.89478621]
[1767874164698,0.32562335,134.41,134.35,1.89478621]
[1767874166699,7.03102335,134.41,134.33,1.89478621]
[1767874168501,0.32562335,134.41,134.35,1.89478621]
[1767874170610,0.32562335,134.45,134.37,1.89478621]
[1767874171014,0.32562335,134.44,134.37,1.89478621]
[1767874171313,6.7043,134.43,134.37,1.89478621]
[1767874171616,7.02992335,134.43,134.34,88.04]
[1767874171816,7.02992335,134.43,134.35,1.89478621]
[1767874173211,6.7049,134.42,134.34,1.89478621]
[1767874174316,7.03846506,134.41,134.34,1.89478621]
[1767874175016,0.33316506,134.41,134.34,1.89478621]
[1767874175802,0.33316506,134.41,134.33,6.709]
[1767874176012,0.33316506,134.41,134.34,1.89478621]
[1767874176817,7.03866506,134.41,134.34,1.89478621]
[1767874177415,0.33316506,134.4,134.34,1.89478621]
[1767874178015,7.03896506,134.4,134.34,1.89478621]
[1767874179811,7.03896506,134.4,134.33,1.89478621]
[1767874180213,6.7064,134.39,134.32,88.04]
[1767874180520,6.7064,134.39,134.32,89.93478621]
[1767874181116,0.33316506,134.4,134.32,89.93478621]
[1767874181821,7.03886506,134.4,134.32,96.64418621]
[1767874182618,7.03886506,134.4,134.34,1.89478621]
[1767874183122,7.03886506,134.4,134.32,94.7494]
[1767874183420,6.7062,134.39,134.33,1.89478621]
[1767874185120,0.33316506,134.37,134.3,1.89478621]
[1767874185323,0.33316506,134.37,134.29,1.89478621]
[1767874186521,7.04036506,134.37,134.3,6.7106]
[1767874187126,7.04036506,134.37,134.31,1.89478621]
[1767874188624,6.7072,134.37,134.31,1.89478621]
[1767874189523,6.7072,134.37,134.3,6.7106]
[1767874189823,6.7072,134.37,134.31,1.89478621]
[1767874191920,7.03976506,134.39,134.33,1.89478621]
[1767874192319,0.33316506,134.38,134.28,88.0]
[1767874192520,0.33316506,134.38,134.31,1.89478621]
[1767874192714,0.33316506,134.41,134.33,1.89478621]
[1767874192929,0.33316506,134.41,134.35,1.89478621]
[1767874193220,0.33316506,134.4,134.28,104.3998]
[1767874193426,0.33316506,134.38,134.3,1.89478621]
[1767874194534,6.7071,134.37,134.3,1.89478621]
[1767874194827,7.04026506,134.37,134.3,1.89478621]
[1767874197029,7.04076506,134.36,134.28,89.89478621]
[1767874198032,0.33316506,134.33,134.27,6.7121]
[1767874198225,0.33316506,134.33,134.22,111.36573081]
[1767874198430,0.33316506,134.33,134.22,192.4475]
[1767874198623,0.33316506,134.33,134.26,1.89478621]
[1767874199024,0.33316506,134.33,134.25,1.89478621]
[1767874199630,7.04226506,134.33,134.26,6.7126]
[1767874201429,0.33316506,134.31,134.25,1.89478621]
[1767874201629,0.33316506,134.31,134.22,1.89478621]
[1767874202538,0.33316506,134.31,134.21,88.0]
[1767874202835,8.90966477,134.3,134.21,1.89478621]
[1767874203024,8.90966477,134.3,134.19,6.90798637]
[1767874203025,0.30417856,134.29,134.19,6.90798637]
[1767874203224,0.30417856,134.29,134.17,9.18818226]
[1767874203225,7.01687856,134.26,134.17,1.89478621]
[1767874203635,8.91166477,134.26,134.17,1.89478621]
[1767874203939,2.19896477,134.26,134.18,6.7165]
[1767874204134,2.19896477,134.26,134.18,8.61128621]
[1767874205240,0.30417856,134.26,134.19,6.716]
[1767874205435,0.30417856,134.26,134.16,23.55638616]
[1767874205642,0.30417856,134.26,134.18,1.89478621]
[1767874205939,7.01687856,134.26,134.18,8.61128621]
[1767874206636,7.01687856,134.26,134.18,6.7165]
[1767874206833,7.01687856,134.26,134.18,1.89478621]
[1767874207031,7.01687856,134.26,134.17,88.02]
[1767874207232,1.89478621,134.27,134.17,1.89478621]
[1767874207233,0.3188178,134.24,134.17,1.89478621]
[1767874208837,6.7132,134.25,134.17,8.61168621]
[1767874209044,0.3188178,134.27,134.19,1.89478621]
[1767874209635,7.0313178,134.27,134.19,1.89478621]
[1767874210544,0.3188178,134.26,134.19,1.89478621]
[1767874210744,0.3188178,134.28,134.19,8.61068621]
[1767874211348,0.3188178,134.28,134.2,6.7155]
[1767874212835,0.3188178,134.28,134.21,1.89478621]
[1767874214153,0.3188178,134.28,134.22,6.7145]
[1767874214950,95.0496178,134.3,134.22,6.7145]
[1767874215850,0.3188178,134.29,134.2,88.06]
[1767874216156,0.3188178,134.27,134.19,1.89478621]
[1767874216360,0.3188178,134.27,134.21,1.89478621]
[1767874216648,0.3188178,134.29,134.21,1.89478621]
[1767874217246,0.3188178,134.28,134.21,8.60968621]
[1767874218551,0.3188178,134.28,134.22,6.7145]
[1767874220650,0.3188178,134.31,134.23,8.60858621]
[1767874220851,0.3188178,134.31,134.21,88.06]
[1767874221051,0.3188178,134.29,134.21,89.95478621]
[1767874221852,0.3188178,134.29,134.21,88.06]
[1767874222048,0.3188178,134.29,134.21,89.95478621]
[1767874222452,0.3188178,134.29,134.22,6.7146]
[1767874222855,0.3188178,134.29,134.21,88.06]
[1767874223459,6.7107,134.3,134.18,104.4784]
[1767874223460,0.3188178,134.27,134.18,88.06]
[1767874224555,7.0311178,134.27,134.19,6.7158]
[1767874225053,7.0311178,134.27,134.2,6.7156]
[1767874225259,0.3188178,134.27,134.2,6.7156]
[1767874225571,0.3188178,134.3,134.19,2.963527]
[1767874225859,0.3188178,134.3,134.21,2.963527]
[1767874226558,6.7116,134.28,134.21,9.678527]
[1767874229249,6.7116,134.28,134.18,88.06]
[1767874229250,0.3188178,134.27,134.18,91.023527]
[1767874230564,0.3188178,134.27,134.2,6.7155]
[1767874230765,0.3188178,134.29,134.2,2.963527]
[1767874231465,7.0299178,134.3,134.2,2.963527]
[1767874231665,7.0299178,134.3,134.22,6.7144]
[1767874232260,0.3188178,134.3,134.23,6.714]
[1767874233967,0.3188178,134.3,134.24,6.7136]
[1767874234361,0.33006775,134.28,134.22,6.7146]
[1767874240660,0.33006775,134.27,134.21,6.715]
[1767874240864,0.33006775,134.27,134.2,9.86476801]
[1767874241373,0.33006775,134.27,134.21,6.90124101]
[1767874241769,0.33006775,134.27,134.2,6.90124101]
[1767874241975,0.33006775,134.27,134.19,6.90124101]
[1767874242474,0.33006775,134.27,134.2,6.90124101]
[1767874243468,0.33006775,134.25,134.19,5.89621743]
[1767874243668,5.78372433,134.24,134.16,16.97465897]
[1767874243976,5.78372433,134.23,134.16,16.97465897]
[1767874244273,0.33006775,134.23,134.16,16.97465897]
[1767874244774,0.33006775,134.23,134.16,23.69215897]
[1767874246377,0.33006775,134.23,134.17,0.32625918]
[1767874246869,0.33006775,134.23,134.16,16.97465897]
[1767874250986,0.33006775,134.23,134.17,0.32625918]
[1767874251477,7.04306775,134.26,134.17,0.32625918]
[1767874251681,5.44880642,134.25,134.17,0.32625918]
[1767874251872,0.33006775,134.26,134.19,0.32625918]
[1767874253586,0.33006775,134.26,134.19,7.04215918]
[1767874253984,0.33006775,134.24,134.17,0.32625918]
[1767874255582,7.04376775,134.24,134.18,0.32625918]
[1767874259382,0.33006775,134.24,134.18,0.32625918]
[1767874259585,0.33006775,134.26,134.19,0.32625918]
[1767874260190,0.33006775,134.28,134.21,0.32625918]
[1767874260390,5.45175047,134.27,134.21,0.32625918]
[1767874260591,5.4516607,134.26,134.21,0.32625918]
[1767874260789,0.33006775,134.26,134.17,0.32625918]
[1767874261088,12.1646507,134.25,134.18,0.32625918]
[1767874261288,6.7132,134.25,134.18,0.32625918]
[1767874262101,0.33006775,134.26,134.2,0.32625918]
[1767874262594,0.31699264,134.28,134.2,0.32625918]
[1767874262797,5.45143462,134.27,134.2,0.32625918]
[1767874262992,0.31699264,134.27,134.2,0.32625918]
[1767874263892,7.01381913,134.29,134.22,0.32537982]
[1767874264093,5.45156357,134.28,134.22,0.32537982]
[1767874264293,0.30221913,134.29,134.22,0.32537982]
[1767874264493,5.45175464,134.28,134.22,0.32537982]
[1767874264691,0.30221913,134.29,134.22,7.03987982]
[1767874265706,7.01341913,134.29,134.22,7.03987982]
[1767874267103,0.30221913,134.29,134.23,6.714]
[1767874268005,0.30221913,134.25,134.19,6.7157]
[1767874268215,0.30221913,134.25,134.17,0.32537982]
[1767874268502,0.30221913,134.23,134.16,16.64839979]
[1767874268908,0.30221913,134.23,134.16,16.97377961]
[1767874269607,0.30221913,134.23,134.16,23.69127961]
[1767874270510,0.30221913,134.23,134.16,16.97377961]
[1767874271313,0.30221913,134.22,134.16,16.97377961]
[1767874271608,6.7143,134.23,134.14,0.32537982]
[1767874271609,0.30221913,134.21,134.14,0.32537982]
[1767874272305,0.30221913,134.19,134.13,0.32537982]
[1767874272812,0.30221913,134.18,134.09,9.18818226]
[1767874273200,0.30221913,134.18,134.1,2.963527]
[1767874273501,0.30221913,134.21,134.12,2.963527]
[1767874273703,5.74289765,134.2,134.1,2.963527]
[1767874274006,0.30221913,134.2,134.1,2.963527]
[1767874274208,0.30221913,134.2,134.09,113.73898226]
[1767874274408,0.30221913,134.2,134.12,2.963527]
[1767874274614,0.30221913,134.2,134.1,2.963527]
[1767874274615,0.30221913,134.19,134.1,2.963527]
[1767874274807,0.30221913,134.19,134.11,0.32537982]
[1767874275809,0.30221913,134.19,134.12,3.28890682]
[1767874276112,0.30221913,134.21,134.13,0.32537982]
[1767874278697,88.08,134.22,134.14,0.32537982]
[1767874279110,0.30221913,134.23,134.16,0.32537982]
[1767874282111,0.30221913,134.24,134.16,0.32537982]
[1767874282319,0.30221913,134.24,134.17,0.32537982]
[1767874282716,94.8123,134.27,134.17,0.32537982]
[1767874282717,0.30221913,134.26,134.17,0.32537982]
[1767874282916,5.44077168,134.25,134.18,0.32537982]
[1767874283112,0.30221913,134.26,134.18,0.32537982]
[1767874284022,0.30221913,134.25,134.18,7.04187982]
[1767874284218,0.30221913,134.24,134.14,9.51356208]
[1767874284517,0.30221913,134.22,134.15,0.32537982]
[1767874287720,0.30221913,134.22,134.15,2.22388905]
[1767874288724,0.30221913,134.22,134.15,8.94188905]
[1767874289719,0.30221913,134.21,134.13,9.18818226]
[1767874289923,0.30221913,134.21,134.06,125.4793]
[1767874289924,0.30221913,134.19,134.1,0.32537982]
[1767874290121,2.20072836,134.18,134.1,0.32537982]
[1767874290622,0.30221913,134.18,134.11,2.22388905]
[1767874290823,0.30221913,134.18,134.11,0.32537982]
[1767874291018,0.30221913,134.18,134.11,2.22388905]
[1767874291417,7.01901913,134.18,134.11,0.32537982]
[1767874291621,8.91752836,134.18,134.11,0.32537982]
[1767874292013,0.30221913,134.15,134.09,0.32537982]
[1767874294624,0.30221913,134.15,134.08,1.89850923]
[1767874294625,6.7193,134.13,134.05,0.30366231]
[1767874294812,0.31108807,134.11,134.01,104.6107]
[1767874295013,0.31108807,134.13,134.04,0.30366231]
[1767874295219,1.89850923,134.15,134.08,0.30366231]
[1767874295418,7.02878807,134.16,134.08,0.30366231]
[1767874295715,0.31108807,134.15,134.08,0.30366231]
[1767874296714,7.02948807,134.15,134.08,0.30366231]
[1767874297428,0.31108807,134.15,134.08,0.30366231]
[1767874298221,0.31108807,134.15,134.06,6.7224]
[1767874298522,2.2095973,134.14,134.06,0.30366231]
[1767874298920,0.31108807,134.14,134.06,0.30366231]
[1767874300028,0.31108807,134.14,134.07,0.30366231]
[1767874300223,0.31108807,134.16,134.07,0.30366231]
[1767874300425,192.6015,134.18,134.07,2.20217154]
[1767874300426,0.31108807,134.15,134.07,2.20217154]
[1767874300826,0.31108807,134.15,134.08,0.30366231]
[1767874301025,0.31108807,134.15,134.08,2.20217154]
[1767874301533,0.31108807,134.15,134.08,0.30366231]
[1767874301734,0.31108807,134.17,134.1,0.30366231]
[1767874301933,0.31108807,134.17,134.1,2.20217154]
[1767874303131,0.31108807,134.17,134.1,0.30366231]
[1767874303929,0.31108807,134.17,134.05,0.30366231]
[1767874303930,1.89850923,134.13,134.05,0.30366231]
[1767874304135,0.31108807,134.15,134.05,0.30366231]
[1767874304320,0.31108807,134.15,134.08,1.89850923]
[1767874304523,0.31108807,134.15,134.08,2.20217154]
[1767874304929,0.31108807,134.15,134.09,0.30366231]
[1767874305630,2.2095973,134.17,134.09,0.30366231]
[1767874305926,0.31108807,134.16,134.09,0.30366231]
[1767874306130,7.02888807,134.16,134.09,0.30366231]
[1767874306327,0.31108807,134.16,134.09,2.20217154]
[1767874307634,0.31108807,134.16,134.09,8.92317154]
[1767874307835,0.31108807,134.15,134.07,2.20217154]
[1767874308037,0.31108807,134.15,134.09,2.20217154]
[1767874308729,88.45108807,134.18,134.09,2.20217154]
[1767874308935,90.3495973,134.18,134.09,2.20217154]
[1767874309237,0.31108807,134.17,134.09,2.20217154]
[1767874309539,7.02888807,134.16,134.09,2.20217154]
[1767874309735,0.31108807,134.15,134.05,88.44366231]
[1767874309935,0.31108807,134.14,134.07,0.30366231]
[1767874310135,7.02988807,134.14,134.07,7.02566231]
[1767874310332,0.31108807,134.14,134.07,7.02566231]
[1767874310532,0.31108807,134.14,134.07,8.92417154]
[1767874310741,7.02978807,134.14,134.07,8.92417154]
[1767874311536,6.7187,134.14,134.08,0.30366231]
[1767874311841,7.02918807,134.16,134.09,2.20217154]
[1767874312140,6.7181,134.16,134.1,0.30366231]
[1767874312541,7.02818807,134.18,134.1,0.30366231]
[1767874312840,7.02818807,134.18,134.07,111.4947226]
[1767874312841,7.02818807,134.18,134.11,2.20217154]
[1767874313042,0.31108807,134.18,134.11,2.20217154]
[1767874314636,7.02778807,134.18,134.11,0.30366231]
[1767874315144,0.31108807,134.17,134.09,0.30366231]
[1767874315443,6.7185,134.15,134.09,0.30366231]
[1767874316244,13.16483879,134.14,134.07,0.30366231]
[1767874316441,6.13505072,134.13,134.07,0.30366231]
[1767874317448,104.4919,134.17,134.07,0.30366231]
[1767874317449,6.13447307,134.12,134.07,0.30366231]
[1767874317645,6.7198,134.12,134.07,0.30366231]
[1767874317945,6.7198,134.12,134.05,0.30366231]
[1767874318350,7.02998807,134.14,134.05,0.30366231]
[1767874318535,0.31108807,134.12,134.03,7.23438491]
[1767874318736,6.44431773,134.11,134.03,0.30366231]
[1767874318937,6.13322966,134.1,134.03,0.30366231]
[1767874319143,0.31108807,134.11,134.03,0.30366231]
[1767874319444,6.13158096,134.1,134.03,0.30366231]
[1767874319637,7.03138807,134.11,134.03,0.30366231]
[1767874319944,6.13160018,134.1,134.03,0.30366231]
[1767874320148,7.03138807,134.11,134.03,0.30366231]
[1767874320940,13.16258699,134.1,134.03,0.30366231]
[1767874321147,7.03178807,134.1,134.03,0.30366231]
[1767874322342,0.31108807,134.1,134.03,6.7241]
[1767874322546,0.31108807,134.1,134.03,7.04092597]
[1767874322752,0.31144524,134.18,134.06,0.31682597]
[1767874323043,0.31144524,134.16,134.06,0.31682597]
[1767874323247,6.13025659,134.15,134.06,0.31682597]
[1767874323544,6.13025659,134.14,134.06,0.31682597]
[1767874323752,0.31144524,134.16,134.07,0.33298783]
[1767874323950,6.11845067,134.15,134.07,0.33298783]
[1767874324143,0.34311241,134.15,134.07,0.33298783]
[1767874324540,7.06131241,134.15,134.07,7.05508783]
[1767874325040,0.34311241,134.12,134.05,6.9307226]
[1767874325343,0.34311241,134.12,134.05,0.33298783]
[1767874326452,7.06201241,134.14,134.05,0.33298783]
[1767874326657,7.06201241,134.14,134.07,6.7221]
[1767874327146,0.34311241,134.12,134.05,0.33298783]
[1767874329153,0.34311241,134.12,134.05,7.05578783]
[1767874329449,0.34311241,134.12,134.06,0.33298783]
[1767874330854,0.34311241,134.1,134.03,7.05668783]
[1767874331054,0.34311241,134.1,134.02,6.9307226]
[1767874331254,0.34311241,134.07,133.99,7.26371043]
[1767874331853,7.06531241,134.07,133.99,13.98981043]
[1767874333146,0.34311241,134.06,133.99,13.6568226]
[1767874333366,6.13173141,134.05,133.98,0.33298783]
[1767874333655,0.34311241,134.05,133.98,0.33298783]
[1767874334656,0.34311241,134.07,133.99,7.26371043]
[1767874335257,0.34311241,134.07,134.0,0.33298783]
[1767874335757,0.34311241,134.05,133.98,6.9307226]
[1767874335959,0.34311241,134.05,133.98,0.33298783]
[1767874336455,0.34311241,134.05,133.99,1.9028551]
[1767874336650,0.34311241,134.05,133.99,2.23584293]
[1767874336952,6.7223,134.07,133.99,2.23584293]
[1767874337158,5.78633184,134.06,133.99,2.23584293]
[1767874337459,7.06541241,134.07,133.99,2.23584293]
[1767874339061,0.34311241,134.06,133.99,2.23584293]
[1767874340256,0.34311241,134.08,134.01,1.9028551]
[1767874340463,0.34311241,134.08,134.01,2.23584293]
[1767874340652,0.34311241,134.1,134.02,2.23584293]
[1767874341058,12.83934777,134.09,134.02,0.33298783]
[1767874341258,0.34311241,134.09,134.02,0.33298783]
[1767874343061,0.34311241,134.09,134.02,7.05738783]
[1767874343265,0.34311241,134.09,134.03,1.9028551]
[1767874343458,0.34311241,134.11,134.03,2.23584293]
[1767874344167,0.34311241,134.11,134.04,1.9028551]
[1767874344566,0.34311241,134.11,134.04,6.7235]
[1767874346268,0.34311241,134.14,134.05,0.33298783]
[1767874346472,0.34311241,134.14,134.06,0.33298783]
[1767874347370,0.34311241,134.14,134.08,6.7208]
[1767874348580,7.06021241,134.16,134.08,7.05378783]
[1767874349479,0.34311241,134.15,134.08,7.05378783]
[1767874350476,0.34311241,134.18,134.09,7.05338783]
[1767874350877,0.34311241,134.18,134.1,0.33298783]
[1767874351582,6.7165,134.17,134.1,0.33298783]
[1767874351786,7.05961241,134.17,134.1,0.33298783]
[1767874352770,6.7165,134.17,134.1,0.33298783]
[1767874353586,7.04109749,134.19,134.1,0.33298783]
[1767874353786,0.32519749,134.17,134.1,0.33298783]
[1767874355585,6.7171,134.16,134.1,0.33298783]
[1767874357378,0.32519749,134.17,134.1,0.33298783]
[1767874357780,0.32519749,134.2,134.11,0.32354282]
[1767874358683,0.32519749,134.2,134.12,7.04244282]
[1767874360588,6.7154,134.19,134.12,7.04244282]
[1767874360988,6.7154,134.19,134.13,0.32354282]
[1767874361189,0.32519749,134.2,134.13,7.04194282]
[1767874361890,6.7144,134.22,134.14,0.32354282]
[1767874362097,0.32519749,134.23,134.14,0.32354282]
[1767874363493,7.03919749,134.22,134.15,7.04084282]
[1767874363689,0.32519749,134.22,134.15,0.32354282]
[1767874364082,0.32519749,134.21,134.15,0.32354282]
[1767874365696,7.04009749,134.21,134.15,0.32354282]
[1767874366385,6.715,134.2,134.15,0.32354282]
[1767874366796,0.32519749,134.21,134.15,0.32354282]
[1767874367290,6.7151,134.2,134.15,0.32354282]
[1767874367696,6.7151,134.2,134.13,0.32354282]
[1767874369996,0.32519749,134.21,134.14,0.32354282]
[1767874370488,195.53057218,134.25,134.14,0.32354282]
[1767874370489,0.32519749,134.24,134.14,0.32354282]
[1767874370695,0.32519749,134.24,134.15,0.32354282]
[1767874371195,6.714,134.22,134.15,7.04084282]
[1767874371386,7.03919749,134.22,134.15,7.04084282]
[1767874371589,7.03919749,134.22,134.15,0.32354282]
[1767874371590,0.32519749,134.22,134.15,0.32354282]
[1767874373698,7.03919749,134.22,134.15,7.04094282]
[1767874374599,7.03919749,134.22,134.15,0.32354282]
[1767874375403,0.32519749,134.2,134.14,88.12]
[1767874376499,0.32519749,134.2,134.14,88.44354282]
[1767874376702,7.04019749,134.2,134.14,88.44354282]
[1767874377602,7.04019749,134.2,134.14,0.32354282]
[1767874377800,7.04069749,134.19,134.12,7.04244282]
[1767874377994,7.04069749,134.19,134.12,95.16244282]
[1767874378804,7.04069749,134.19,134.13,0.32354282]
[1767874378992,0.32519749,134.19,134.13,0.32354282]
[1767874380106,7.04059749,134.19,134.13,0.32354282]
[1767874381307,7.04059749,134.19,134.13,7.04194282]
[1767874381503,88.44519749,134.24,134.14,0.32354282]
[1767874382009,0.32519749,134.24,134.17,0.32354282]
[1767874382193,0.32400471,134.25,134.15,2.96657218]
[1767874382397,0.32400471,134.25,134.16,88.45464487]
[1767874382600,0.32400471,134.21,134.14,88.45464487]
[1767874382805,104.4127,134.26,134.15,0.33464487]
[1767874382806,0.32400471,134.23,134.15,0.33464487]
[1767874383012,0.32400471,134.23,134.15,2.96657218]
[1767874383204,0.32400471,134.25,134.17,0.33464487]
[1767874385517,0.32400471,134.25,134.18,0.34232045]
[1767874386001,0.3352661,134.27,134.19,0.34232045]
[1767874387722,0.3352661,134.29,134.2,0.34232045]
[1767874388015,5.69174856,134.28,134.21,0.34232045]
[1767874388211,0.3352661,134.29,134.21,0.34232045]
[1767874388410,0.3352661,134.29,134.22,7.05612045]
[1767874388604,104.3557,134.33,134.22,0.34232045]
[1767874388605,0.3352661,134.33,134.22,0.34232045]
[1767874388811,0.3352661,134.31,134.22,0.34232045]
[1767874389015,0.3352661,134.32,134.24,0.34232045]
[1767874389210,0.3352661,134.3,134.24,0.34232045]
[1767874390019,0.3352661,134.29,134.21,13.95905507]
[1767874390210,0.3352661,134.29,134.22,0.34232045]
[1767874391610,0.3352661,134.29,134.22,7.05622045]
[1767874392416,6.7103,134.3,134.23,0.34232045]
[1767874392614,6.7105,134.29,134.23,0.34232045]
[1767874392918,0.3352661,134.3,134.2,95.15722045]
[1767874393220,6.03119533,134.29,134.2,88.44232045]
[1767874393416,0.3352661,134.29,134.21,0.34232045]
[1767874393609,214.8412,134.34,134.21,0.34232045]
[1767874393610,0.3352661,134.31,134.21,0.34232045]
[1767874393813,5.69530414,134.3,134.21,0.34232045]
[1767874394014,0.3352661,134.31,134.21,0.34232045]
[1767874394319,0.3352661,134.31,134.24,0.34232045]
[1767874394714,0.3352661,134.31,134.25,7.05472045]
[1767874394921,0.3352661,134.31,134.25,0.34232045]
[1767874395324,7.0447661,134.31,134.25,0.34232045]
[1767874395618,104.3419,134.35,134.25,0.34232045]
[1767874395619,0.3352661,134.35,134.26,0.34232045]
[1767874396026,0.3352661,134.35,134.28,0.34232045]
[1767874396722,6.708,134.34,134.28,0.34232045]
[1767874396918,0.3352661,134.35,134.26,88.42232045]
[1767874397123,104.3348,134.36,134.26,0.34232045]
[1767874397124,0.3352661,134.33,134.26,0.34232045]
[1767874398216,0.3352661,134.33,134.24,0.34232045]
[1767874399622,7.0441661,134.33,134.25,0.34232045]
[1767874400417,0.3352661,134.32,134.25,0.34232045]
[1767874400616,0.3352661,134.32,134.24,6.7129]
[1767874401019,7.0447661,134.31,134.24,6.7129]
[1767874401327,0.3352661,134.31,134.23,0.34232045]
[1767874402527,6.71,134.3,134.23,7.05572045]
[1767874403431,4.7729,134.3,134.23,7.05572045]
[1767874404033,6.7105,134.29,134.21,6.714]
[1767874404227,7.0457661,134.29,134.21,95.11632045]
[1767874404647,7.0457661,134.29,134.22,0.34232045]
[1767874405336,7.0470661,134.27,134.2,0.34232045]
[1767874405535,0.3352661,134.27,134.2,0.34232045]
[1767874406635,6.712,134.26,134.2,0.34232045]
[1767874408536,6.712,134.26,134.17,0.34232045]
[1767874408537,0.3352661,134.25,134.17,0.34232045]
[1767874408844,1.89708809,134.26,134.15,9.14184316]
[1767874408845,0.3352661,134.24,134.15,9.14184316]
[1767874409037,0.3352661,134.23,134.15,2.23940854]
[1767874410439,7.0488661,134.23,134.15,8.95670854]
[1767874410832,7.0488661,134.23,134.15,7.05962045]
[1767874411043,7.0488661,134.23,134.15,8.95670854]
[1767874412148,0.3352661,134.23,134.16,7.05912045]
[1767874412729,7.0488661,134.23,134.16,7.05912045]
[1767874412934,7.0488661,134.23,134.16,0.34232045]
[1767874413429,7.0488661,134.23,134.13,104.5068]
[1767874413430,7.05342289,134.21,134.13,8.95046983]